bitfinex-derivatives/quotes_SOLF0:USTF0_20260215
["timestamp","ask_amount","ask_price","bid_price","bid_amount"]
[1771173988481,3.59062667,87.571,87.52,18.1296989]
[1771173989272,3.55088007,87.559,87.504,18.1296989]
[1771173991778,10.2856,87.549,87.504,18.1296989]
[1771173992275,3.92642562,87.548,87.504,18.1296989]
[1771173992881,10.2858,87.547,87.504,18.1296989]
[1771173993582,10.2858,87.547,87.436,160.205]
[1771173993583,3.88788159,87.542,87.491,10.2923]
[1771173993983,3.88788159,87.542,87.49,18.1296989]
[1771173994182,10.2901,87.511,87.458,10.2963]
[1771173994380,8.94431517,87.52,87.459,18.1296989]
[1771173995781,8.94431517,87.52,87.464,18.1296989]
[1771173995782,19.23341517,87.52,87.464,18.1296989]
[1771173995982,3.63781507,87.519,87.464,18.1296989]
[1771173996183,3.63781507,87.519,87.433,18.1296989]
[1771173996688,3.63781507,87.504,87.443,18.1296989]
[1771173997186,10.2897,87.514,87.456,18.1296989]
[1771173997388,13.89095133,87.514,87.456,18.1296989]
[1771173997688,3.60125133,87.513,87.456,18.1296989]
[1771173999987,3.60125133,87.513,87.42,8.94431517]
[1771173999988,3.3458711,87.52,87.459,18.1296989]
[1771174000383,3.3458711,87.54,87.471,18.1296989]
[1771174001791,3.3458711,87.52,87.481,18.1296989]
[1771174001990,3.3458711,87.53,87.481,18.1296989]
[1771174005797,3.3458711,87.52,87.481,18.1296989]
[1771174005999,3.4756408,87.531,87.481,18.1296989]
[1771174006999,10.2865,87.542,87.484,17.53997067]
[1771174008094,3.76542552,87.538,87.488,17.53997067]
[1771174009195,10.287,87.537,87.49,17.53997067]
[1771174009505,3.76542552,87.538,87.49,17.53997067]
[1771174009797,3.73322458,87.558,87.49,17.53997067]
[1771174010697,10.2857,87.548,87.492,10.2922]
[1771174010898,10.2857,87.548,87.493,17.53997067]
[1771174011099,3.73322458,87.558,87.493,17.53997067]
[1771174012805,10.2867,87.539,87.493,17.53997067]
[1771174013107,3.80539808,87.559,87.493,17.53997067]
[1771174013600,10.2847,87.557,87.504,17.53997067]
[1771174014800,10.2847,87.557,87.506,17.53997067]
[1771174015304,8.95965086,87.57,87.509,10.2903]
[1771174015507,3.95730592,87.569,87.51,17.53997067]
[1771174016698,10.2846,87.558,87.51,17.53997067]
[1771174016901,4.09198282,87.557,87.497,17.53997067]
[1771174017804,4.09198282,87.557,87.499,10.2914]
[1771174018000,4.09198282,87.557,87.5,17.53997067]
[1771174018907,10.2861,87.545,87.5,17.53997067]
[1771174019113,4.05124092,87.544,87.5,17.53997067]
[1771174020411,4.07004537,87.538,87.487,17.53997067]
[1771174021709,10.288,87.528,87.487,17.53997067]
[1771174022211,4.07004537,87.538,87.487,17.53997067]
[1771174022402,3.89530442,87.549,87.49,17.53997067]
[1771174023310,3.86787818,87.548,87.49,17.53997067]
[1771174023708,34.38,87.549,87.49,17.53997067]
[1771174023709,10.2883,87.526,87.49,17.53997067]
[1771174024012,3.84374705,87.533,87.49,17.53997067]
[1771174024810,10.2892,87.519,87.49,17.53997067]
[1771174025116,3.8184795,87.518,87.466,17.53997067]
[1771174025412,10.2912,87.501,87.449,17.53997067]
[1771174027012,10.2925,87.491,87.449,17.53997067]
[1771174028115,10.2927,87.489,87.449,17.53997067]
[1771174028814,3.3478136,87.47,87.41,3.3478136]
[1771174029008,3.3478136,87.47,87.4,3.3478136]
[1771174029513,10.295,87.469,87.41,3.3478136]
[1771174029709,3.3478136,87.49,87.42,3.3478136]
[1771174029911,3.3478136,87.49,87.43,3.3478136]
[1771174030708,3.3478136,87.5,87.44,3.3478136]
[1771174030909,3.3478136,87.5,87.441,17.53997067]
[1771174031816,10.2915,87.499,87.445,17.53997067]
[1771174033415,10.2915,87.499,87.448,18.48377754]
[1771174035526,3.3478136,87.49,87.448,18.48377754]
[1771174035718,3.3478136,87.5,87.448,18.48377754]
[1771174035921,17.71130816,87.509,87.454,18.48377754]
[1771174036420,10.2905,87.508,87.454,18.48377754]
[1771174037428,10.2905,87.508,87.456,18.48377754]
[1771174037926,10.2905,87.508,87.46,18.48377754]
[1771174043429,28.00180816,87.508,87.46,18.48377754]
[1771174045028,17.71130816,87.508,87.463,18.48377754]
[1771174046229,17.71130816,87.508,87.465,18.48377754]
[1771174047726,10.2905,87.507,87.465,18.48377754]
[1771174057433,10.2896,87.515,87.468,18.48377754]
[1771174060138,10.2896,87.515,87.471,18.48377754]
[1771174069539,8.35475715,87.529,87.481,18.26240447]
[1771174069745,8.35475715,87.529,87.447,20.595]
[1771174069746,25.98572772,87.547,87.491,18.26240447]
[1771174070044,17.63097057,87.545,87.491,18.26240447]
[1771174070348,20.97720057,87.54,87.491,18.26240447]
[1771174070743,10.2872,87.535,87.491,18.26240447]
[1771174072254,10.2885,87.525,87.491,18.26240447]
[1771174082650,10.2885,87.525,87.447,41.78803578]
[1771174082651,17.63097057,87.513,87.47,3.34623]
[1771174082852,17.63097057,87.513,87.47,21.60863447]
[1771174083051,3.34623,87.52,87.47,21.60863447]
[1771174083256,17.63097057,87.524,87.47,21.60863447]
[1771174084757,17.63097057,87.524,87.472,18.26240447]
[1771174084758,10.2894,87.517,87.472,18.26240447]
[1771174087261,17.63097057,87.524,87.472,18.26240447]
[1771174088862,17.63097057,87.524,87.479,18.26240447]
[1771174089566,17.63097057,87.521,87.479,18.26240447]
[1771174089763,17.63097057,87.519,87.47,21.60863447]
[1771174090762,10.2896,87.516,87.47,21.60863447]
[1771174092071,10.2899,87.512,87.47,18.26240447]
[1771174093774,17.63097057,87.515,87.472,17.98188819]
[1771174096073,10.2889,87.521,87.472,17.98188819]
[1771174097471,16.9021637,87.539,87.491,17.98188819]
[1771174097867,16.9021637,87.537,87.491,17.98188819]
[1771174098176,16.9021637,87.534,87.491,17.98188819]
[1771174098771,10.2878,87.531,87.491,17.98188819]
[1771174098971,16.9021637,87.53,87.491,17.98188819]
[1771174102073,10.2886,87.524,87.491,17.98188819]
[1771174102473,8.36882201,87.535,87.491,17.98188819]
[1771174102775,8.36882201,87.539,87.491,17.98188819]
[1771174102971,8.36882201,87.538,87.491,17.98188819]
[1771174103277,16.9021637,87.536,87.491,17.98188819]
[1771174103481,25.27098571,87.535,87.491,17.98188819]
[1771174103674,16.9021637,87.535,87.491,17.98188819]
[1771174103977,27.1894637,87.535,87.491,17.98188819]
[1771174104571,35.55828571,87.535,87.491,17.98188819]
[1771174104773,10.2875,87.533,87.491,17.98188819]
[1771174108275,10.2875,87.533,87.448,97.66]
[1771174108276,16.9021637,87.509,87.455,17.98188819]
[1771174108472,20.24602583,87.5,87.455,17.98188819]
[1771174109174,13.63646213,87.49,87.455,17.98188819]
[1771174109679,10.2936,87.481,87.432,17.98188819]
[1771174109880,16.9021637,87.516,87.432,17.98188819]
[1771174110177,3.34386213,87.5,87.441,17.98188819]
[1771174110882,10.2924,87.491,87.443,17.98188819]
[1771174112181,3.34386213,87.49,87.443,17.98188819]
[1771174113880,10.293,87.486,87.443,17.98188819]
[1771174114080,3.34386213,87.49,87.443,17.98188819]
[1771174114081,16.9021637,87.485,87.443,17.98188819]
[1771174115685,10.2936,87.481,87.443,17.98188819]
[1771174119585,27.1957637,87.481,87.443,17.98188819]
[1771174120287,10.2936,87.481,87.443,17.98188819]
[1771174121185,3.34386213,87.48,87.443,17.98188819]
[1771174121781,16.9021637,87.468,87.427,17.98188819]
[1771174121977,16.9021637,87.468,87.396,244.94258429]
[1771174121978,3.34386213,87.48,87.431,17.98188819]
[1771174123091,10.2928,87.488,87.441,17.98188819]
[1771174124087,3.34386213,87.48,87.441,17.98188819]
[1771174124392,21.48438467,87.48,87.441,17.98188819]
[1771174124590,31.77808467,87.48,87.441,17.98188819]
[1771174125290,21.48438467,87.47,87.425,16.70476919]
[1771174125891,3.34386213,87.46,87.425,16.70476919]
[1771174126692,10.2943,87.475,87.426,16.70476919]
[1771174127886,10.2943,87.475,87.429,16.70476919]
[1771174129096,10.2943,87.475,87.431,16.70476919]
[1771174130296,3.34386213,87.47,87.431,16.70476919]
[1771174130598,10.2943,87.475,87.433,16.70476919]
[1771174133804,3.34386213,87.47,87.433,16.70476919]
[1771174137503,10.2932,87.485,87.435,16.70476919]
[1771174137804,10.2932,87.485,87.441,16.70476919]
[1771174138899,10.2926,87.489,87.441,16.70476919]
[1771174139702,10.2926,87.489,87.445,10.2978]
[1771174139906,10.2917,87.497,87.446,16.70476919]
[1771174140402,3.34386213,87.49,87.446,16.70476919]
[1771174140801,3.34386213,87.49,87.448,16.70476919]
[1771174143605,3.34386213,87.49,87.45,16.70476919]
[1771174143905,28.43222254,87.497,87.45,16.70476919]
[1771174144707,28.43222254,87.497,87.452,16.70476919]
[1771174144708,10.2917,87.497,87.452,16.70476919]
[1771174145703,10.2917,87.497,87.454,16.70476919]
[1771174147108,3.34386213,87.5,87.457,10.2963]
[1771174147309,3.34386213,87.5,87.458,16.70476919]
[1771174147907,18.14052254,87.507,87.458,16.70476919]
[1771174148813,10.2907,87.506,87.458,16.70476919]
[1771174150410,10.2907,87.506,87.46,16.70476919]
[1771174151312,28.43122254,87.506,87.46,16.70476919]
[1771174154609,28.43122254,87.506,87.46,20.04863132]
[1771174157608,28.43122254,87.506,87.459,10.2961]
[1771174157609,8.36079252,87.522,87.471,16.44508425]
[1771174157808,16.40354267,87.529,87.481,16.44508425]
[1771174158817,10.2886,87.524,87.481,16.44508425]
[1771174161511,16.40354267,87.529,87.481,16.44508425]
[1771174165120,16.40354267,87.529,87.48,3.34397313]
[1771174165324,3.34397313,87.54,87.442,21.19303578]
[1771174165325,16.40354267,87.54,87.501,16.44508425]
[1771174165523,298.10354267,87.551,87.511,16.44508425]
[1771174166419,281.7,87.551,87.511,16.44508425]
[1771174166623,16.40354267,87.55,87.511,16.44508425]
[1771174169530,10.2833,87.569,87.52,3.34397313]
[1771174169722,16.40354267,87.559,87.508,16.44508425]
[1771174169928,16.40354267,87.549,87.508,16.44508425]
[1771174171226,16.40354267,87.549,87.51,3.34397313]
[1771174171429,10.2832,87.569,87.521,16.44508425]
[1771174171829,10.2832,87.569,87.53,3.34397313]
[1771174172531,434.27885639,87.58,87.541,16.44508425]
[1771174172731,304.6875158,87.6,87.551,16.44508425]
[1771174172929,16.40354267,87.599,87.551,16.44508425]
[1771174173828,3.34397313,87.59,87.551,16.44508425]
[1771174175733,16.40354267,87.597,87.551,16.44508425]
[1771174175929,302.44354267,87.609,87.551,16.44508425]
[1771174176130,16.40354267,87.608,87.551,16.44508425]
[1771174176338,19.7475158,87.6,87.551,16.44508425]
[1771174176937,16.40354267,87.6,87.555,10.2848]
[1771174177434,19.7475158,87.6,87.551,16.44508425]
[1771174177634,19.7475158,87.6,87.55,3.34397313]
[1771174178037,16.40354267,87.589,87.545,10.286]
[1771174179140,16.40354267,87.589,87.545,26.73108425]
[1771174181040,16.40354267,87.589,87.545,16.44508425]
[1771174181240,16.40354267,87.579,87.536,10.2871]
[1771174181435,16.40354267,87.569,87.533,16.44508425]
[1771174181641,16.40354267,87.569,87.524,10.2884]
[1771174181836,19.7475158,87.56,87.511,16.44508425]
[1771174182238,16.40354267,87.559,87.511,16.44508425]
[1771174182542,16.40354267,87.549,87.499,16.44508425]
[1771174183137,3.34397313,87.54,87.499,16.44508425]
[1771174183338,20.39810345,87.54,87.499,16.44508425]
[1771174184639,20.39810345,87.54,87.495,10.2918]
[1771174184840,20.39810345,87.54,87.496,17.73516159]
[1771174185435,3.34397313,87.53,87.496,17.73516159]
[1771174186738,20.39810345,87.54,87.496,17.73516159]
[1771174188541,17.60994173,87.553,87.511,17.73516159]
[1771174190944,20.95391486,87.57,87.52,3.34397313]
[1771174191142,20.95391486,87.57,87.521,17.73516159]
[1771174192147,3.34397313,87.58,87.531,17.73516159]
[1771174193342,17.60994173,87.582,87.534,17.73516159]
[1771174194047,3.34397313,87.58,87.534,17.73516159]
[1771174194747,3.34397313,87.58,87.538,10.2868]
[1771174195145,20.95391486,87.57,87.507,17.73516159]
[1771174195447,20.95391486,87.57,87.519,17.73516159]
[1771174195843,17.60994173,87.583,87.531,17.73516159]
[1771174196044,3.34397313,87.58,87.531,17.73516159]
[1771174196543,3.34397313,87.58,87.534,17.73516159]
[1771174197548,17.60994173,87.595,87.541,17.73516159]
[1771174197745,17.60994173,87.579,87.53,3.34397313]
[1771174197937,17.60994173,87.579,87.499,17.73516159]
[1771174197938,17.60994173,87.568,87.515,28.02466159]
[1771174198142,17.60994173,87.559,87.515,17.73516159]
[1771174198948,17.60994173,87.559,87.517,17.73516159]
[1771174200248,17.60994173,87.591,87.541,17.73516159]
[1771174200454,17.60994173,87.591,87.55,3.34397313]
[1771174201552,17.60994173,87.588,87.541,17.73516159]
[1771174203349,3.34397313,87.58,87.541,17.73516159]
[1771174203954,17.60994173,87.588,87.541,17.73516159]
[1771174207557,17.60994173,87.585,87.541,17.73516159]
[1771174207953,17.60994173,87.585,87.545,10.286]
[1771174208154,17.60994173,87.585,87.546,17.73516159]
[1771174209557,27.88984173,87.598,87.546,17.73516159]
[1771174209757,17.60994173,87.597,87.546,17.73516159]
[1771174214660,17.49735834,87.595,87.546,17.73516159]
[1771174219173,17.49735834,87.592,87.546,17.73516159]
[1771174221384,17.49735834,87.579,87.535,10.2872]
[1771174222473,17.49735834,87.579,87.539,16.52512091]
[1771174222674,17.49735834,87.594,87.541,16.52512091]
[1771174223879,17.49735834,87.592,87.546,16.52512091]
[1771174224981,10.2809,87.589,87.546,16.52512091]
[1771174225381,10.2809,87.589,87.548,16.52512091]
[1771174225681,17.49735834,87.592,87.548,16.52512091]
[1771174226680,282.46,87.605,87.509,108.14]
[1771174226681,10.2791,87.605,87.556,10.2846]
[1771174226881,10.2791,87.605,87.561,16.52512091]
[1771174229482,17.49735834,87.599,87.55,3.33913335]
[1771174229686,17.49735834,87.579,87.534,16.52512091]
[1771174231085,17.49735834,87.559,87.519,16.52512091]
[1771174231878,3.33913335,87.55,87.506,16.52512091]
[1771174235294,3.33913335,87.55,87.51,16.52512091]
[1771174235888,17.49735834,87.555,87.51,16.52512091]
[1771174239495,3.33913335,87.55,87.51,16.52512091]
[1771174239894,17.49735834,87.555,87.51,16.52512091]
[1771174243095,3.33913335,87.55,87.51,16.52512091]
[1771174246194,16.9237904,87.539,87.499,16.82972386]
[1771174246386,3.33913335,87.54,87.499,16.82972386]
[1771174247189,3.33913335,87.54,87.458,103.6]
[1771174247190,3.33913335,87.54,87.501,16.82972386]
[1771174249196,10.2861,87.545,87.501,16.82972386]
[1771174251091,27.2098904,87.545,87.501,16.82972386]
[1771174251297,13.62573335,87.54,87.501,16.82972386]
[1771174252298,16.9237904,87.539,87.501,16.82972386]
[1771174260600,20.26292375,87.53,87.49,16.82972386]
[1771174260806,16.9237904,87.509,87.466,16.82972386]
[1771174262003,16.9237904,87.509,87.468,16.82972386]
[1771174263308,3.33913335,87.54,87.491,16.82972386]
[1771174263510,20.26292375,87.54,87.491,16.82972386]
[1771174264410,10.2878,87.531,87.491,16.82972386]
[1771174266507,20.26292375,87.54,87.491,16.82972386]
[1771174266508,10.2886,87.524,87.491,16.82972386]
[1771174270117,16.9237904,87.523,87.474,16.82972386]
[1771174270318,3.33913335,87.52,87.474,16.82972386]
[1771174274114,3.33913335,87.52,87.476,17.10861944]
[1771174276714,27.29007646,87.522,87.476,17.10861944]
[1771174277020,17.00137646,87.509,87.463,17.10861944]
[1771174278719,17.00137646,87.509,87.466,17.10861944]
[1771174283429,3.33913335,87.53,87.481,17.10861944]
[1771174283628,16.98615987,87.529,87.481,17.10861944]
[1771174283825,10.2908,87.505,87.47,17.10861944]
[1771174284033,16.85477192,87.504,87.47,17.10861944]
[1771174290430,16.85477192,87.504,87.47,20.45396082]
[1771174293935,16.85477192,87.504,87.47,17.10861944]
[1771174301338,14.9741732,87.502,87.459,17.10861944]
[1771174304139,14.32961622,87.5,87.459,17.10861944]
[1771174308949,14.32961622,87.5,87.461,15.11553666]
[1771174309148,10.2904,87.509,87.461,15.11553666]
[1771174310552,10.2913,87.501,87.461,15.11553666]
[1771174316658,13.48136583,87.505,87.461,15.11553666]
[1771174320759,34.32,87.527,87.447,15.11553666]
[1771174320760,12.648803,87.499,87.447,15.11553666]
[1771174320959,12.648803,87.499,87.405,20.605]
[1771174320960,3.34534138,87.48,87.43,3.34534138]
[1771174321155,12.648803,87.479,87.431,15.11553666]
[1771174321550,12.63589661,87.478,87.431,15.11553666]
[1771174321749,12.63589661,87.478,87.377,20.6115]
[1771174321750,12.63589661,87.469,87.42,3.34534138]
[1771174321953,12.63589661,87.469,87.423,15.11553666]
[1771174322349,12.63589661,87.469,87.43,3.34534138]
[1771174322962,12.63589661,87.469,87.424,15.11553666]
[1771174323262,12.63589661,87.469,87.427,10.2998]
[1771174323654,12.63589661,87.469,87.427,25.41533666]
[1771174323854,12.63589661,87.469,87.428,15.11553666]
[1771174324053,12.63589661,87.469,87.43,3.34534138]
[1771174325359,12.63589661,87.469,87.428,15.11553666]
[1771174326057,12.63589661,87.469,87.431,15.11553666]
[1771174326461,12.63589661,87.469,87.37,28.23307497]
[1771174326462,12.07364883,87.459,87.41,15.11553666]
[1771174326665,12.07364883,87.459,87.41,18.46087804]
[1771174326956,12.07364883,87.459,87.42,18.46087804]
[1771174328360,12.07364883,87.459,87.41,3.34534138]
[1771174329861,3.34534138,87.46,87.409,15.11553666]
[1771174329862,11.71624259,87.458,87.409,15.11553666]
[1771174330259,11.19126172,87.449,87.4,3.34534138]
[1771174330460,11.19126172,87.446,87.397,15.11553666]
[1771174330662,11.19126172,87.446,87.401,15.11553666]
[1771174334159,3.34534138,87.46,87.401,15.11553666]
[1771174334367,10.62246155,87.47,87.421,13.50955444]
[1771174335357,10.62246155,87.47,87.43,3.34534138]
[1771174335661,10.62246155,87.47,87.43,16.85489582]
[1771174335860,10.2951,87.469,87.43,16.85489582]
[1771174336170,10.62246155,87.47,87.43,16.85489582]
[1771174341967,9.38153359,87.481,87.441,13.50955444]
[1771174344476,10.2939,87.479,87.441,13.50955444]
[1771174346682,9.38153359,87.481,87.441,13.50955444]
[1771174348485,3.34757608,87.49,87.411,91.24]
[1771174348486,8.83716064,87.503,87.456,13.50955444]
[1771174349187,8.35054177,87.52,87.456,13.50955444]
[1771174349188,8.71238679,87.499,87.456,13.50955444]
[1771174349589,8.69407143,87.497,87.456,13.50955444]
[1771174350083,8.57074734,87.508,87.463,13.50955444]
[1771174350285,8.57074734,87.508,87.471,13.50955444]
[1771174356582,8.09861716,87.507,87.46,3.34757608]
[1771174357191,8.09861716,87.507,87.46,16.85713052]
[1771174357793,7.85405758,87.505,87.46,16.85713052]
[1771174358994,7.76171261,87.502,87.46,16.85713052]
[1771174359884,34.32,87.522,87.45,3.34757608]
[1771174359885,7.63376016,87.493,87.45,3.34757608]
[1771174360585,17.82827792,87.482,87.448,13.50955444]
[1771174364199,6.77413156,87.479,87.44,3.34757608]
[1771174364394,6.77413156,87.479,87.437,11.67797758]
[1771174364592,6.77413156,87.479,87.425,11.67797758]
[1771174365795,6.55649317,87.476,87.425,11.67797758]
[1771174365991,6.55649317,87.476,87.43,3.34757608]
[1771174367794,6.55649317,87.476,87.431,11.67797758]
[1771174369593,6.11786346,87.464,87.421,11.67797758]
[1771174370192,10.2944,87.474,87.425,11.67797758]
[1771174370389,10.2944,87.474,87.431,11.67797758]
[1771174372296,10.2932,87.485,87.441,11.67797758]
[1771174375904,15.77666276,87.485,87.441,11.67797758]
[1771174377103,3.34757608,87.48,87.441,11.67797758]
[1771174378807,15.77666276,87.485,87.441,11.67797758]
[1771174379002,10.2919,87.495,87.447,11.67797758]
[1771174379208,5.18209769,87.496,87.451,11.67797758]
[1771174380407,5.18209769,87.496,87.456,11.67797758]
[1771174382102,3.34757608,87.49,87.456,11.67797758]
[1771174385008,4.6029406,87.518,87.461,11.67797758]
[1771174385310,4.6029406,87.518,87.471,11.67797758]
[1771174386711,14.80647265,87.517,87.471,11.67797758]
[1771174387709,3.34757608,87.52,87.471,11.67797758]
[1771174387902,3.34757608,87.52,87.477,11.67797758]
[1771174388102,14.71494847,87.525,87.477,11.67797758]
[1771174388505,4.45003152,87.514,87.477,11.67797758]
[1771174389013,3.34757608,87.52,87.477,11.67797758]
[1771174389513,10.2893,87.517,87.477,11.67797758]
[1771174390814,4.37315404,87.525,87.481,11.67797758]
[1771174392717,3.34757608,87.53,87.485,11.67797758]
[1771174393320,10.2874,87.534,87.488,10.10505434]
[1771174394415,3.34757608,87.54,87.491,10.10505434]
[1771174394612,3.94751341,87.548,87.501,10.10505434]
[1771174396819,7.10502202,87.54,87.501,10.10505434]
[1771174398518,3.75744594,87.54,87.501,10.10505434]
[1771174399226,3.36503043,87.519,87.481,10.2935]
[1771174399623,3.36503043,87.519,87.482,10.10505434]
[1771174400223,3.34757608,87.52,87.482,10.10505434]
[1771174400423,6.49637289,87.53,87.482,10.10505434]
[1771174400620,3.14879681,87.529,87.482,10.10505434]
[1771174400826,3.34757608,87.52,87.482,10.10505434]
[1771174405529,3.14879681,87.525,87.483,10.10505434]
[1771174405931,3.14879681,87.525,87.486,10.10505434]
[1771174408037,3.34448647,87.52,87.486,10.10505434]
[1771174412738,10.2896,87.515,87.487,8.7482081]
[1771174413041,2.44423083,87.519,87.487,8.7482081]
[1771174413239,3.34448647,87.52,87.487,8.7482081]
[1771174413440,3.34448647,87.53,87.487,8.7482081]
[1771174413741,7.07865774,87.53,87.487,8.7482081]
[1771174414345,3.64479581,87.529,87.487,8.7482081]
[1771174414544,3.64479581,87.519,87.47,3.34448647]
[1771174414847,3.64479581,87.519,87.474,10.10505434]
[1771174415750,3.64479581,87.519,87.475,10.2942]
[1771174415950,3.64479581,87.519,87.476,10.10505434]
[1771174416949,3.64479581,87.519,87.478,10.10505434]
[1771174417744,3.64479581,87.519,87.481,10.10505434]
[1771174421750,3.34448647,87.51,87.47,10.10505434]
[1771174422048,10.2893,87.518,87.47,10.10505434]
[1771174422351,3.34448647,87.52,87.471,10.10505434]
[1771174422753,287.9482,87.527,87.48,10.10505434]
[1771174423745,287.9482,87.527,87.482,9.43400021]
[1771174426759,277.66,87.527,87.488,9.43400021]
[1771174427852,277.66,87.527,87.491,9.43400021]
[1771174429155,280.46178243,87.527,87.491,9.43400021]
[1771174429458,280.46178243,87.527,87.482,10.2934]
[1771174429459,2.80178243,87.519,87.482,10.2934]
[1771174432359,2.80178243,87.519,87.483,9.43400021]
[1771174432755,2.59202875,87.509,87.47,9.43400021]
[1771174434757,2.59202875,87.509,87.421,91.2]
[1771174434758,3.34448647,87.49,87.448,9.43400021]
[1771174434964,2.57116321,87.499,87.448,9.43400021]
[1771174435762,10.2918,87.497,87.449,9.43400021]
[1771174435963,8.36859445,87.508,87.46,3.34448647]
[1771174436265,2.47892212,87.511,87.461,9.43400021]
[1771174437767,2.47892212,87.511,87.462,9.43400021]
[1771174438664,2.47892212,87.511,87.467,9.43400021]
[1771174438968,2.47892212,87.511,87.471,9.43400021]
[1771174444170,3.34448647,87.51,87.471,9.43400021]
[1771174444474,2.22543269,87.509,87.471,9.43400021]
[1771174456883,2.22543269,87.509,87.472,10.2946]
[1771174457086,2.22543269,87.509,87.473,8.90419204]
[1771174462291,3.34448647,87.51,87.473,8.90419204]
[1771174469092,1.122,87.499,87.461,8.90419204]
[1771174469291,3.34448647,87.5,87.461,8.90419204]
[1771174469892,3.34618026,87.5,87.461,8.90419204]
[1771174470797,3.34618026,87.5,87.464,8.90419204]
[1771174474299,8.36529361,87.509,87.472,8.90419204]
[1771174474504,4.46181618,87.51,87.472,8.90419204]
[1771174477602,0.81574744,87.509,87.472,8.90419204]
[1771174479105,3.34618026,87.51,87.475,8.90419204]
[1771174483003,298.72,87.512,87.475,8.90419204]
[1771174483910,10.65815656,87.538,87.482,8.52443791]
[1771174484203,0.50038019,87.539,87.491,8.52443791]
[1771174485309,3.34618026,87.54,87.491,8.52443791]
[1771174485702,300.96,87.544,87.498,8.52443791]
[1771174486804,3.34618026,87.54,87.498,8.52443791]
[1771174487205,3.34618026,87.54,87.46,100.26]
[1771174487206,0.39847281,87.559,87.511,8.52443791]
[1771174487510,3.73959123,87.54,87.491,8.52443791]
[1771174487701,0.39341097,87.539,87.491,8.52443791]
[1771174488803,0.39341097,87.539,87.491,18.81673791]
[1771174489004,0.39341097,87.539,87.492,8.52443791]
[1771174489708,0.39341097,87.539,87.497,8.52443791]
[1771174492807,0.39341097,87.539,87.5,8.52443791]
[1771174494913,3.34618026,87.55,87.504,8.52443791]
[1771174495115,0.22935941,87.557,87.511,8.52443791]
[1771174496811,0.22935941,87.557,87.513,8.52443791]
[1771174497408,0.16337568,87.539,87.501,8.52443791]
[1771174502323,3.34618026,87.56,87.511,8.52443791]
[1771174502916,0.04344399,87.559,87.511,8.52443791]
[1771174503116,3.34618026,87.55,87.511,8.52443791]
[1771174504422,0.04344399,87.559,87.515,8.52443791]
[1771174504614,3.34618026,87.57,87.521,8.52443791]
[1771174505924,3.34618026,87.57,87.527,8.52443791]
[1771174507424,10.2822,87.578,87.531,8.52443791]
[1771174510323,171.74618026,87.58,87.534,8.52443791]
[1771174512020,168.4,87.58,87.534,8.52443791]
[1771174512925,171.74618026,87.58,87.534,8.52443791]
[1771174513230,3.34618026,87.58,87.534,8.52443791]
[1771174517822,3.34618026,87.57,87.534,8.52443791]
[1771174522134,3.34618026,87.56,87.523,8.28265902]
[1771174522932,3.34618026,87.55,87.501,8.26301995]
[1771174523434,3.34618026,87.54,87.501,8.26301995]
[1771174524730,13.63158026,87.55,87.501,8.26301995]
[1771174524935,13.63158026,87.55,87.503,8.23651136]
[1771174527129,10.2865,87.541,87.503,8.23651136]
[1771174527331,0.08478983,87.549,87.503,8.23651136]
[1771174528335,10.2865,87.541,87.503,8.23651136]
[1771174528636,3.34618026,87.54,87.503,8.23651136]
[1771174530228,3.34618026,87.53,87.486,7.99423481]
[1771174531534,3.34618026,87.55,87.501,8.00155527]
[1771174531927,3.34232701,87.55,87.501,8.00155527]
[1771174532831,3.34232701,87.55,87.503,8.02078128]
[1771174533637,3.34232701,87.54,87.503,8.02078128]
[1771174535634,3.34232701,87.54,87.506,8.01286792]
[1771174535943,3.34232701,87.55,87.506,8.01286792]
[1771174536840,3.34232701,87.55,87.509,8.04154626]
[1771174538445,3.34232701,87.54,87.509,8.04154626]
[1771174539746,3.34232701,87.54,87.459,20.98611448]
[1771174539747,3.34232701,87.52,87.484,7.94577481]
[1771174540542,3.34232701,87.51,87.484,7.94577481]
[1771174541242,10.2889,87.521,87.484,7.94577481]
[1771174541243,3.34232701,87.52,87.484,7.94577481]
[1771174544148,34.32,87.535,87.47,3.34232701]
[1771174544149,3.34232701,87.58,87.51,3.34232701]
[1771174544344,3.34232701,87.58,87.52,3.34232701]
[1771174544743,12.21486266,87.595,87.54,3.34232701]
[1771174544938,12.21486266,87.589,87.494,14.00435017]
[1771174545137,12.21486266,87.588,87.522,10.2887]
[1771174545340,12.21486266,87.588,87.54,3.34232701]
[1771174545541,12.21486266,87.588,87.55,3.34232701]
[1771174547948,12.21486266,87.588,87.56,3.34232701]
[1771174548150,12.21486266,87.588,87.55,3.34232701]
[1771174550749,12.21486266,87.588,87.56,3.34232701]
[1771174554351,12.21486266,87.588,87.57,3.34232701]
[1771174554549,11.83647771,87.607,87.58,3.34232701]
[1771174556055,11.83647771,87.607,87.57,3.34232701]
[1771174563255,11.83756438,87.618,87.59,3.34232701]
[1771174563462,11.83756438,87.618,87.6,3.34232701]
[1771174563856,11.83756438,87.618,87.58,3.34232701]